fUSD/lending_fUSD_20260622
["ID","MTS","AMOUNT","RATE_DAILY","PERIOD"]
[425976053,1782061911000,-500.0,0.00029041,2]
[425976060,1782061911000,-500.0,0.00029041,2]
[425976073,1782061911000,-650.16,0.00029041,2]
[425976120,1782061912000,-500.0,0.00029041,2]
[425976134,1782061912000,-500.0,0.00029041,2]
[425976126,1782061912000,-546.99,0.00029041,2]
[425976135,1782061912000,-500.0,0.00029041,2]
[425976133,1782061912000,-500.0,0.00029041,2]
[425976125,1782061912000,-500.0,0.00029041,2]
[425976124,1782061912000,-500.0,0.00029041,2]
[425976132,1782061912000,-3268.54,0.00029041,2]
[425976130,1782061912000,-500.0,0.00029041,2]
[425976128,1782061912000,-6111.21,0.00029041,2]
[425976145,1782061912000,-500.0,0.00029041,2]
[425976131,1782061912000,-500.0,0.00029041,2]
[425976129,1782061912000,-500.0,0.00029041,2]
[425976136,1782061912000,-543.15,0.00029041,2]
[425976146,1782061912000,-240.12,0.00029042,7]
[425976147,1782061912000,-300.0,0.0002905,30]
[425976138,1782061912000,-6629.64,0.00029041,2]
[425976142,1782061912000,-500.0,0.00029041,2]
[425976143,1782061912000,-500.0,0.00029041,2]
[425976118,1782061912000,-648.87418673,0.00029041,2]
[425976141,1782061912000,-4853.13,0.00029041,2]
[425976127,1782061912000,-2744.45,0.00029041,2]
[425976121,1782061912000,-4605.85,0.00029041,2]
[425976108,1782061912000,-4815.29,0.00029041,2]
[425976117,1782061912000,-8318.01,0.00029041,2]
[425976137,1782061912000,-500.0,0.00029041,2]
[425976101,1782061912000,-500.0,0.00029041,2]
[425976098,1782061912000,-4451.14,0.00029041,2]
[425976103,1782061912000,-2000.0,0.00029041,2]
[425976100,1782061912000,-500.0,0.00029041,2]
[425976104,1782061912000,-1823.11,0.00029041,2]
[425976106,1782061912000,-616.3,0.00029041,2]
[425976099,1782061912000,-500.0,0.00029041,2]
[425976102,1782061912000,-500.0,0.00029041,2]
[425976105,1782061912000,-500.0,0.00029041,2]
[425976111,1782061912000,-500.0,0.00029041,2]
[425976107,1782061912000,-500.0,0.00029041,2]
[425976112,1782061912000,-1825.32,0.00029041,2]
[425976110,1782061912000,-500.0,0.00029041,2]
[425976109,1782061912000,-8230.87,0.00029041,2]
[425976113,1782061912000,-500.0,0.00029041,2]
[425976114,1782061912000,-3531.97,0.00029041,2]
[425976116,1782061912000,-529.37,0.00029041,2]
[425976123,1782061912000,-500.0,0.00029041,2]
[425976122,1782061912000,-500.0,0.00029041,2]
[425976115,1782061912000,-500.0,0.00029041,2]
[425976119,1782061912000,-500.0,0.00029041,2]
[425976139,1782061912000,-1025.57,0.00029041,2]
[425976140,1782061912000,-781.73,0.00029041,2]
[425976178,1782061912000,-5407.97475,0.0002926,30]
[425976183,1782061912000,-43950.135166,0.00029315,2]
[425976185,1782061912000,-500.0,0.00029315,2]
[425976184,1782061912000,-500.0,0.00029315,2]
[425976175,1782061912000,-1025.33,0.0002924,30]
[425976173,1782061912000,-189.79,0.00029232,7]
[425976179,1782061912000,-2331.0,0.00029281,3]
[425976177,1782061912000,-10000.0,0.0002926,2]
[425976176,1782061912000,-2000.0,0.0002926,2]
[425976181,1782061912000,-300.0,0.00029298,30]
[425976180,1782061912000,-160.0,0.00029281,3]
[425976186,1782061912000,-500.0,0.00029315,2]
[425976190,1782061912000,-500.0,0.00029315,2]
[425976188,1782061912000,-500.0,0.00029315,2]
[425976191,1782061912000,-576.16,0.00029315,2]
[425976192,1782061912000,-500.0,0.00029315,2]
[425976189,1782061912000,-500.0,0.00029315,2]
[425976187,1782061912000,-200.54923305,0.00029315,2]
[425976193,1782061912000,-500.0,0.00029315,2]
[425976194,1782061912000,-500.0,0.00029315,2]
[425976195,1782061912000,-500.0,0.00029315,2]
[425976144,1782061912000,-500.0,0.00029041,2]
[425976182,1782061912000,-501.82455083,0.00029315,2]
[425976168,1782061912000,-152.0,0.00029174,5]
[425976174,1782061912000,-240.28,0.00029232,7]
[425976170,1782061912000,-240.12,0.00029201,2]
[425976149,1782061912000,-240.12,0.00029074,30]
[425976159,1782061912000,-240.12,0.00029137,7]
[425976160,1782061912000,-2370.42,0.00029152,7]
[425976148,1782061912000,-300.0,0.0002905,30]
[425976150,1782061912000,-1025.33,0.0002908,30]
[425976151,1782061912000,-150.0,0.00029101,30]
[425976169,1782061912000,-189.68,0.00029201,2]
[425976156,1782061912000,-240.12,0.00029105,2]
[425976154,1782061912000,-1088.96950673,0.00029101,30]
[425976157,1782061912000,-300.0,0.00029133,30]
[425976158,1782061912000,-189.68,0.00029137,7]
[425976152,1782061912000,-1567.34072151,0.00029101,30]
[425976164,1782061912000,-1439.74,0.00029152,7]
[425976153,1782061912000,-150.0,0.00029101,30]
[425976161,1782061912000,-811.1,0.00029152,7]
[425976163,1782061912000,-811.37,0.00029152,7]
[425976166,1782061912000,-189.68,0.00029169,30]
[425976171,1782061912000,-1334.72,0.0002921,2]
[425976162,1782061912000,-1298.69,0.00029152,7]
[425976172,1782061912000,-300.0,0.00029215,30]
[425976167,1782061912000,-240.12,0.00029169,30]
[425976165,1782061912000,-1025.33,0.0002916,30]
[425976155,1782061912000,-189.68,0.00029105,2]
[425976236,1782061913000,-1369.32,0.00029315,2]
[425976242,1782061913000,-500.0,0.00029315,2]
[425976223,1782061913000,-1512.27,0.00029315,2]
[425976239,1782061913000,-553.48,0.00029315,2]
[425976243,1782061913000,-500.0,0.00029315,2]
[425976234,1782061913000,-923.93,0.00029315,2]
[425976227,1782061913000,-544.8,0.00029315,2]
[425976228,1782061913000,-643.15,0.00029315,2]
[425976225,1782061913000,-500.0,0.00029315,2]
[425976224,1782061913000,-500.0,0.00029315,2]
[425976241,1782061913000,-500.0,0.00029315,2]
[425976232,1782061913000,-500.0,0.00029315,2]
[425976235,1782061913000,-500.0,0.00029315,2]
[425976251,1782061913000,-500.0,0.00029315,2]
[425976233,1782061913000,-500.0,0.00029315,2]
[425976240,1782061913000,-500.0,0.00029315,2]
[425976238,1782061913000,-500.0,0.00029315,2]
[425976255,1782061913000,-527.94,0.00029315,2]
[425976245,1782061913000,-500.0,0.00029315,2]
[425976244,1782061913000,-1267.5,0.00029315,2]
[425976256,1782061913000,-526.65,0.00029315,2]
[425976246,1782061913000,-500.0,0.00029315,2]
[425976250,1782061913000,-555.93,0.00029315,2]
[425976247,1782061913000,-597.73,0.00029315,2]
[425976249,1782061913000,-500.0,0.00029315,2]
[425976254,1782061913000,-500.0,0.00029315,2]
[425976226,1782061913000,-842.29,0.00029315,2]
[425976237,1782061913000,-500.0,0.00029315,2]
[425976222,1782061913000,-1217.07,0.00029315,2]
[425976200,1782061913000,-579.02,0.00029315,2]
[425976231,1782061913000,-500.0,0.00029315,2]
[425976196,1782061913000,-500.0,0.00029315,2]
[425976198,1782061913000,-500.0,0.00029315,2]
[425976197,1782061913000,-500.0,0.00029315,2]
[425976199,1782061913000,-500.0,0.00029315,2]
[425976202,1782061913000,-2687.78,0.00029315,2]
[425976205,1782061913000,-1000.0,0.00029315,7]
[425976206,1782061913000,-500.0,0.00029315,2]
[425976201,1782061913000,-500.0,0.00029315,2]
[425976204,1782061913000,-500.0,0.00029315,2]
[425976203,1782061913000,-500.0,0.00029315,2]
[425976207,1782061913000,-500.0,0.00029315,2]
[425976208,1782061913000,-536.66,0.00029315,2]
[425976221,1782061913000,-1160.03,0.00029315,2]
[425976209,1782061913000,-500.0,0.00029315,2]
[425976219,1782061913000,-1266.12,0.00029315,2]
[425976212,1782061913000,-631.9,0.00029315,2]
[425976217,1782061913000,-1880.63,0.00029315,2]
[425976215,1782061913000,-500.0,0.00029315,2]
[425976218,1782061913000,-500.0,0.00029315,2]
[425976214,1782061913000,-500.0,0.00029315,2]
[425976211,1782061913000,-500.0,0.00029315,2]
[425976210,1782061913000,-500.0,0.00029315,2]
[425976213,1782061913000,-508.36,0.00029315,2]
[425976220,1782061913000,-645.4,0.00029315,2]
[425976229,1782061913000,-975.39,0.00029315,2]
[425976230,1782061913000,-651.64,0.00029315,2]
[425976216,1782061913000,-500.0,0.00029315,2]
[425976248,1782061913000,-500.0,0.00029315,2]
[425976304,1782061913000,-500.0,0.00029315,2]
[425976252,1782061913000,-305.90566357,0.00029315,2]
[425976282,1782061913000,-972.04,0.00029315,2]
[425976286,1782061913000,-506.54,0.00029315,2]
[425976290,1782061913000,-766.03,0.00029315,2]
[425976291,1782061913000,-500.0,0.00029315,2]
[425976293,1782061913000,-500.0,0.00029315,2]
[425976292,1782061913000,-500.0,0.00029315,2]
[425976295,1782061913000,-500.0,0.00029315,2]
[425976301,1782061913000,-500.0,0.00029315,2]
[425976300,1782061913000,-500.0,0.00029315,2]
[425976297,1782061913000,-500.0,0.00029315,2]
[425976296,1782061913000,-549.42,0.00029315,2]
[425976294,1782061913000,-500.0,0.00029315,2]
[425976299,1782061913000,-500.0,0.00029315,2]
[425976298,1782061913000,-500.0,0.00029315,2]
[425976305,1782061913000,-847.94,0.00029315,2]
[425976302,1782061913000,-500.0,0.00029315,2]
[425976303,1782061913000,-500.0,0.00029315,2]
[425976306,1782061913000,-216.05513713,0.00029315,2]
[425976308,1782061913000,-500.0,0.00029315,2]
[425976313,1782061913000,-500.0,0.00029315,2]
[425976311,1782061913000,-831.45,0.00029315,2]
[425976307,1782061913000,-500.0,0.00029315,2]
[425976314,1782061913000,-500.0,0.00029315,2]
[425976310,1782061913000,-741.63,0.00029315,2]
[425976309,1782061913000,-500.0,0.00029315,2]
[425976253,1782061913000,-500.0,0.00029315,2]
[425976315,1782061913000,-534.55,0.00029315,2]
[425976283,1782061913000,-562.86,0.00029315,2]
[425976289,1782061913000,-3422.69,0.00029315,2]
[425976312,1782061913000,-535.03,0.00029315,2]
[425976285,1782061913000,-500.0,0.00029315,2]
[425976288,1782061913000,-500.0,0.00029315,2]
[425976258,1782061913000,-540.54,0.00029315,2]
[425976260,1782061913000,-610.79,0.00029315,2]
[425976261,1782061913000,-500.0,0.00029315,2]
[425976268,1782061913000,-398.19353032,0.00029315,2]
[425976263,1782061913000,-500.0,0.00029315,2]
[425976264,1782061913000,-500.0,0.00029315,2]
[425976262,1782061913000,-902.56,0.00029315,2]
[425976257,1782061913000,-500.0,0.00029315,2]
[425976265,1782061913000,-500.0,0.00029315,2]
[425976266,1782061913000,-500.0,0.00029315,2]
[425976267,1782061913000,-529.62,0.00029315,2]
[425976277,1782061913000,-500.0,0.00029315,2]
[425976269,1782061913000,-500.0,0.00029315,2]
[425976278,1782061913000,-598.59,0.00029315,2]
[425976287,1782061913000,-534.07,0.00029315,2]
[425976270,1782061913000,-500.0,0.00029315,2]
[425976276,1782061913000,-500.0,0.00029315,2]
[425976272,1782061913000,-500.0,0.00029315,2]
[425976275,1782061913000,-597.07,0.00029315,2]
[425976273,1782061913000,-560.08,0.00029315,2]
[425976284,1782061913000,-819.78,0.00029315,2]
[425976274,1782061913000,-500.0,0.00029315,2]
[425976279,1782061913000,-500.0,0.00029315,2]
[425976271,1782061913000,-591.28,0.00029315,2]
[425976259,1782061913000,-500.0,0.00029315,2]
[425976280,1782061913000,-500.0,0.00029315,2]
[425976281,1782061913000,-500.0,0.00029315,2]
[425976346,1782061914000,-508.83,0.00029315,2]
[425976347,1782061914000,-500.0,0.00029315,2]
[425976350,1782061914000,-1511.74,0.00029315,2]
[425976348,1782061914000,-500.0,0.00029315,2]
[425976351,1782061914000,-500.0,0.00029315,2]
[425976357,1782061914000,-690.91,0.00029315,2]
[425976353,1782061914000,-893.03,0.00029315,2]
[425976355,1782061914000,-1318.07,0.00029315,2]
[425976359,1782061914000,-500.0,0.00029315,2]
[425976362,1782061914000,-500.0,0.00029315,2]
[425976360,1782061914000,-500.0,0.00029315,2]
[425976349,1782061914000,-500.0,0.00029315,2]
[425976373,1782061914000,-540.14,0.00029315,2]
[425976356,1782061914000,-500.0,0.00029315,2]
[425976354,1782061914000,-500.0,0.00029315,2]
[425976361,1782061914000,-500.0,0.00029315,2]
[425976363,1782061914000,-800.23,0.00029315,2]
[425976365,1782061914000,-500.0,0.00029315,2]
[425976369,1782061914000,-803.29,0.00029315,2]
[425976367,1782061914000,-500.0,0.00029315,2]
[425976376,1782061914000,-500.0,0.00029315,2]
[425976364,1782061914000,-500.0,0.00029315,2]
[425976366,1782061914000,-594.9,0.00029315,2]
[425976370,1782061914000,-500.0,0.00029315,2]
[425976343,1782061914000,-2678.53,0.00029315,2]
[425976374,1782061914000,-500.0,0.00029315,2]
[425976358,1782061914000,-500.0,0.00029315,2]
[425976341,1782061914000,-500.0,0.00029315,2]
[425976332,1782061914000,-952.51,0.00029315,2]
[425976344,1782061914000,-500.0,0.00029315,2]
[425976371,1782061914000,-1092.63,0.00029315,2]
[425976316,1782061914000,-500.0,0.00029315,2]
[425976318,1782061914000,-663.71,0.00029315,2]
[425976317,1782061914000,-500.0,0.00029315,2]
[425976328,1782061914000,-500.0,0.00029315,2]
[425976320,1782061914000,-567.5,0.00029315,2]
[425976319,1782061914000,-670.78,0.00029315,2]
[425976321,1782061914000,-500.0,0.00029315,2]
[425976323,1782061914000,-500.0,0.00029315,2]
[425976322,1782061914000,-1423.29,0.00029315,2]
[425976326,1782061914000,-500.0,0.00029315,2]
[425976324,1782061914000,-161.00287,0.00029315,2]
[425976345,1782061914000,-678.71,0.00029315,2]
[425976325,1782061914000,-500.0,0.00029315,2]
[425976331,1782061914000,-698.8,0.00029315,2]
[425976333,1782061914000,-620.22,0.00029315,2]
[425976334,1782061914000,-500.0,0.00029315,2]
[425976330,1782061914000,-1244.82,0.00029315,2]
[425976339,1782061914000,-792.91,0.00029315,2]
[425976340,1782061914000,-500.0,0.00029315,2]
[425976338,1782061914000,-500.0,0.00029315,2]
[425976335,1782061914000,-500.0,0.00029315,2]
[425976337,1782061914000,-588.39,0.00029315,2]
[425976336,1782061914000,-500.0,0.00029315,2]
[425976342,1782061914000,-640.68,0.00029315,2]
[425976352,1782061914000,-519.3,0.00029315,2]
[425976329,1782061914000,-500.0,0.00029315,2]
[425976372,1782061914000,-500.0,0.00029315,2]
[425976327,1782061914000,-226.86662039,0.00029315,2]
[425976375,1782061914000,-500.0,0.00029315,2]
[425976410,1782061914000,-500.0,0.00029315,2]
[425976403,1782061914000,-500.0,0.00029315,2]
[425976412,1782061914000,-500.0,0.00029315,2]
[425976413,1782061914000,-572.65,0.00029315,2]
[425976408,1782061914000,-500.0,0.00029315,2]
[425976409,1782061914000,-500.0,0.00029315,2]
[425976415,1782061914000,-500.0,0.00029315,2]
[425976425,1782061914000,-873.86,0.00029315,2]
[425976426,1782061914000,-500.0,0.00029315,2]
[425976414,1782061914000,-1130.66,0.00029315,2]
[425976421,1782061914000,-3926.18,0.00029315,2]
[425976416,1782061914000,-500.0,0.00029315,2]
[425976420,1782061914000,-500.0,0.00029315,2]
[425976417,1782061914000,-6753.8,0.00029315,2]
[425976419,1782061914000,-469.44007265,0.00029315,2]
[425976418,1782061914000,-500.0,0.00029315,2]
[425976422,1782061914000,-500.0,0.00029315,2]
[425976424,1782061914000,-340.76341297,0.00029315,2]
[425976423,1782061914000,-2712.86,0.00029315,2]
[425976427,1782061914000,-500.0,0.00029315,2]
[425976429,1782061914000,-5923.33,0.00029315,2]
[425976428,1782061914000,-4889.99,0.00029315,2]
[425976433,1782061914000,-541.15,0.00029315,2]
[425976432,1782061914000,-732.43,0.00029315,2]
[425976434,1782061914000,-1048.26,0.00029315,2]
[425976431,1782061914000,-541.03608534,0.00029315,2]
[425976368,1782061914000,-500.0,0.00029315,2]
[425976411,1782061914000,-500.0,0.00029315,2]
[425976407,1782061914000,-500.0,0.00029315,2]
[425976430,1782061914000,-741.05,0.00029315,2]
[425976406,1782061914000,-500.0,0.00029315,2]
[425976404,1782061914000,-500.0,0.00029315,2]
[425976377,1782061914000,-500.0,0.00029315,2]
[425976378,1782061914000,-500.0,0.00029315,2]
[425976379,1782061914000,-500.0,0.00029315,2]
[425976386,1782061914000,-500.0,0.00029315,2]
[425976389,1782061914000,-500.0,0.00029315,2]
[425976383,1782061914000,-654.24,0.00029315,2]
[425976380,1782061914000,-500.0,0.00029315,2]
[425976388,1782061914000,-602.92,0.00029315,2]
[425976381,1782061914000,-3987.32,0.00029315,2]
[425976384,1782061914000,-500.0,0.00029315,2]
[425976387,1782061914000,-500.0,0.00029315,2]
[425976382,1782061914000,-590.01479161,0.00029315,2]
[425976385,1782061914000,-500.0,0.00029315,2]
[425976400,1782061914000,-500.0,0.00029315,2]
[425976391,1782061914000,-5224.19,0.00029315,2]
[425976402,1782061914000,-1000.0,0.00029315,2]
[425976397,1782061914000,-1118.18,0.00029315,2]
[425976401,1782061914000,-500.0,0.00029315,2]
[425976394,1782061914000,-500.0,0.00029315,2]
[425976392,1782061914000,-500.0,0.00029315,2]
[425976405,1782061914000,-1016.84,0.00029315,2]
[425976390,1782061914000,-5864.59,0.00029315,2]
[425976393,1782061914000,-500.0,0.00029315,2]
[425976399,1782061914000,-1056.03,0.00029315,2]
[425976398,1782061914000,-500.0,0.00029315,2]
[425976396,1782061914000,-500.0,0.00029315,2]
[425976395,1782061914000,-500.0,0.00029315,2]
[425976467,1782061915000,-9631.81,0.00029315,2]
[425976472,1782061915000,-1094.84,0.00029315,2]
[425976466,1782061915000,-500.0,0.00029315,2]
[425976460,1782061915000,-500.0,0.00029315,2]
[425976465,1782061915000,-913.85,0.00029315,2]
[425976464,1782061915000,-500.0,0.00029315,2]
[425976478,1782061915000,-3370.08,0.00029315,2]
[425976463,1782061915000,-839.88,0.00029315,2]
[425976461,1782061915000,-4107.48,0.00029315,2]
[425976462,1782061915000,-500.0,0.00029315,2]
[425976473,1782061915000,-500.0,0.00029315,2]
[425976474,1782061915000,-500.0,0.00029315,2]
[425976470,1782061915000,-1087.92,0.00029315,2]
[425976468,1782061915000,-500.0,0.00029315,2]
[425976471,1782061915000,-390.18658201,0.00029315,2]
[425976477,1782061915000,-3218.44,0.00029315,2]
[425976476,1782061915000,-8104.14,0.00029315,2]
[425976475,1782061915000,-500.0,0.00029315,2]
[425976486,1782061915000,-826.36,0.00029315,2]
[425976459,1782061915000,-4867.06,0.00029315,2]
[425976489,1782061915000,-500.0,0.00029315,2]
[425976469,1782061915000,-4501.1,0.00029315,2]
[425976458,1782061915000,-500.0,0.00029315,2]
[425976444,1782061915000,-500.0,0.00029315,2]
[425976457,1782061915000,-500.0,0.00029315,2]
[425976488,1782061915000,-4428.27,0.00029315,2]
[425976436,1782061915000,-500.0,0.00029315,2]
[425976438,1782061915000,-391.66588181,0.00029315,2]
[425976437,1782061915000,-500.0,0.00029315,2]
[425976435,1782061915000,-500.0,0.00029315,2]
[425976439,1782061915000,-500.0,0.00029315,2]
[425976441,1782061915000,-6410.69,0.00029315,2]
[425976442,1782061915000,-605.17,0.00029315,2]
[425976440,1782061915000,-4756.56,0.00029315,2]
[425976443,1782061915000,-12052.2,0.00029315,2]
[425976445,1782061915000,-203.40784959,0.00029315,2]
[425976454,1782061915000,-547.74,0.00029315,2]
[425976446,1782061915000,-4173.31,0.00029315,2]
[425976451,1782061915000,-1547.68,0.00029315,2]
[425976449,1782061915000,-500.0,0.00029315,2]
[425976447,1782061915000,-2146.6,0.00029315,2]
[425976452,1782061915000,-500.0,0.00029315,2]
[425976455,1782061915000,-215.19602582,0.00029315,2]
[425976448,1782061915000,-8253.7,0.00029315,2]
[425976450,1782061915000,-822.03,0.00029315,2]
[425976453,1782061915000,-500.0,0.00029315,2]
[425976456,1782061915000,-9055.22,0.00029315,2]
[425976487,1782061915000,-510.71995396,0.00029315,2]
[425976484,1782061915000,-6582.69,0.00029315,2]
[425976479,1782061915000,-9092.8,0.00029315,2]
[425976511,1782061915000,-742.97,0.00029315,2]
[425976512,1782061915000,-500.0,0.00029315,2]
[425976508,1782061915000,-500.0,0.00029315,2]
[425976509,1782061915000,-981.05,0.00029315,2]
[425976510,1782061915000,-10460.79,0.00029315,2]
[425976515,1782061915000,-15060.49,0.00029315,2]
[425976516,1782061915000,-500.0,0.00029315,2]
[425976519,1782061915000,-4131.31,0.00029315,2]
[425976520,1782061915000,-3874.09,0.00029315,2]
[425976522,1782061915000,-538.42,0.00029315,2]
[425976525,1782061915000,-500.0,0.00029315,2]
[425976523,1782061915000,-629.28,0.00029315,2]
[425976521,1782061915000,-6683.71,0.00029315,2]
[425976517,1782061915000,-6462.79,0.00029315,2]
[425976524,1782061915000,-500.0,0.00029315,2]
[425976526,1782061915000,-500.0,0.00029315,2]
[425976528,1782061915000,-785.35,0.00029315,2]
[425976527,1782061915000,-500.0,0.00029315,2]
[425976530,1782061915000,-500.0,0.00029315,2]
[425976529,1782061915000,-853.42,0.00029315,2]
[425976480,1782061915000,-946.16,0.00029315,2]
[425976507,1782061915000,-10410.98,0.00029315,2]
[425976505,1782061915000,-3418.67,0.00029315,2]
[425976518,1782061915000,-500.0,0.00029315,2]
[425976504,1782061915000,-500.0,0.00029315,2]
[425976531,1782061915000,-500.0,0.00029315,2]
[425976506,1782061915000,-8432.29,0.00029315,2]
[425976490,1782061915000,-3434.42,0.00029315,2]
[425976483,1782061915000,-8949.23,0.00029315,2]
[425976481,1782061915000,-544.71,0.00029315,2]
[425976485,1782061915000,-500.0,0.00029315,2]
[425976482,1782061915000,-500.0,0.00029315,2]
[425976496,1782061915000,-500.0,0.00029315,2]
[425976499,1782061915000,-763.6,0.00029315,2]
[425976495,1782061915000,-6468.05,0.00029315,2]
[425976502,1782061915000,-500.0,0.00029315,2]
[425976491,1782061915000,-6489.37,0.00029315,2]
[425976497,1782061915000,-8108.8,0.00029315,2]
[425976514,1782061915000,-650.16,0.00029315,2]
[425976503,1782061915000,-514.73,0.00029315,2]
[425976492,1782061915000,-500.0,0.00029315,2]
[425976500,1782061915000,-2478.59,0.00029315,2]
[425976513,1782061915000,-631.38,0.00029315,2]
[425976493,1782061915000,-500.0,0.00029315,2]
[425976498,1782061915000,-398.34860027,0.00029315,2]
[425976494,1782061915000,-500.0,0.00029315,2]
[425976501,1782061915000,-500.0,0.00029315,2]
[425976569,1782061916000,-500.0,0.00029315,2]
[425976563,1782061916000,-167.7276054,0.00029315,2]
[425976561,1782061916000,-500.0,0.00029315,2]
[425976562,1782061916000,-4605.85,0.00029315,2]
[425976564,1782061916000,-500.0,0.00029315,2]
[425976570,1782061916000,-500.0,0.00029315,2]
[425976568,1782061916000,-292.02696908,0.00029315,2]
[425976567,1782061916000,-6111.21,0.00029315,2]
[425976566,1782061916000,-2744.45,0.00029315,2]
[425976565,1782061916000,-546.99,0.00029315,2]
[425976571,1782061916000,-500.0,0.00029315,2]
[425976580,1782061916000,-781.73,0.00029315,2]
[425976577,1782061916000,-500.0,0.00029315,2]
[425976576,1782061916000,-543.15,0.00029315,2]
[425976574,1782061916000,-500.0,0.00029315,2]
[425976579,1782061916000,-1025.57,0.00029315,2]
[425976575,1782061916000,-500.0,0.00029315,2]
[425976572,1782061916000,-3268.54,0.00029315,2]
[425976582,1782061916000,-500.0,0.00029315,2]
[425976581,1782061916000,-4853.13,0.00029315,2]
[425976578,1782061916000,-6629.64,0.00029315,2]
[425976583,1782061916000,-500.0,0.00029315,2]
[425976558,1782061916000,-8318.01,0.00029315,2]
[425976573,1782061916000,-500.0,0.00029315,2]
[425976556,1782061916000,-500.0,0.00029315,2]
[425976533,1782061916000,-500.0,0.00029315,2]
[425976552,1782061916000,-500.0,0.00029315,2]
[425976590,1782061916000,-811.37,0.00029319,2]
[425976536,1782061916000,-1483.1,0.00029315,2]
[425976535,1782061916000,-2013.27,0.00029315,2]
[425976534,1782061916000,-670.57,0.00029315,2]
[425976532,1782061916000,-500.0,0.00029315,2]
[425976537,1782061916000,-709.73,0.00029315,2]
[425976543,1782061916000,-500.0,0.00029315,2]
[425976539,1782061916000,-4451.14,0.00029315,2]
[425976545,1782061916000,-1823.11,0.00029315,2]
[425976549,1782061916000,-4815.29,0.00029315,2]
[425976540,1782061916000,-500.0,0.00029315,2]
[425976547,1782061916000,-616.3,0.00029315,2]
[425976546,1782061916000,-500.0,0.00029315,2]
[425976538,1782061916000,-501.49,0.00029315,2]
[425976544,1782061916000,-2000.0,0.00029315,2]
[425976541,1782061916000,-500.0,0.00029315,2]
[425976542,1782061916000,-539.36164074,0.00029315,2]
[425976548,1782061916000,-500.0,0.00029315,2]
[425976559,1782061916000,-500.0,0.00029315,2]
[425976560,1782061916000,-552.83384068,0.00029315,2]
[425976550,1782061916000,-8230.87,0.00029315,2]
[425976551,1782061916000,-500.0,0.00029315,2]
[425976553,1782061916000,-1825.32,0.00029315,2]
[425976554,1782061916000,-500.0,0.00029315,2]
[425976555,1782061916000,-3531.97,0.00029315,2]
[425976557,1782061916000,-529.37,0.00029315,2]
[425976584,1782061916000,-500.0,0.00029315,2]
[425976585,1782061916000,-500.0,0.00029315,2]
[425976592,1782061916000,-1025.33,0.0002932,30]
[425976616,1782061916000,-10000.0,0.000295,2]
[425976626,1782061916000,-1025.33,0.0002956,30]
[425976622,1782061916000,-350.0,0.000295,30]
[425976618,1782061916000,-1850.65,0.000295,7]
[425976620,1782061916000,-2328.59,0.000295,7]
[425976619,1782061916000,-4371.97678784,0.000295,2]
[425976621,1782061916000,-3000.0,0.000295,3]